fUSD/lending_fUSD_20260626
["ID","MTS","AMOUNT","RATE_DAILY","PERIOD"]
[426462902,1782419438000,-1000.0,0.00020717,2]
[426462907,1782419438000,-3962.34597599,0.00020827,2]
[426462900,1782419438000,-509.67095034,0.000206,2]
[426462901,1782419438000,-1508.64438965,0.000206,2]
[426462897,1782419438000,-3019.33703451,0.00020235,2]
[426462896,1782419438000,-1508.64438965,0.000202,2]
[426462898,1782419438000,-509.67095034,0.000204,2]
[426462899,1782419438000,-1508.64438965,0.000204,2]
[426462894,1782419438000,-305.0,0.0002,2]
[426462891,1782419438000,-467.0,0.0002,2]
[426462895,1782419438000,-509.67095034,0.000202,2]
[426462903,1782419438000,-185.75123286,0.00020725,2]
[426462893,1782419438000,-594.0,0.0002,2]
[426462994,1782419439000,-367.0,0.00022,2]
[426462982,1782419439000,-378.0,0.00022,2]
[426462996,1782419439000,-162.0,0.00022,2]
[426462976,1782419439000,-268.63153517,0.00021942,2]
[426462972,1782419439000,-3962.34597599,0.00021753,2]
[426462978,1782419439000,-813.0,0.00022,2]
[426462974,1782419439000,-5000.0,0.00021918,2]
[426462970,1782419439000,-902.0,0.00021607,2]
[426462968,1782419439000,-3019.33703451,0.00021468,2]
[426462984,1782419439000,-226.0,0.00022,2]
[426462980,1782419439000,-915.0,0.00022,2]
[426462986,1782419439000,-515.0,0.00022,2]
[426463012,1782419439000,-1234.844,0.00022121,2]
[426462992,1782419439000,-1123.0,0.00022,2]
[426462990,1782419439000,-260.0,0.00022,2]
[426462998,1782419439000,-467.0,0.00022,2]
[426463002,1782419439000,-3272.83,0.00022,2]
[426463006,1782419439000,-500.0,0.00022099,2]
[426463000,1782419439000,-594.0,0.00022,2]
[426463004,1782419439000,-305.0,0.00022,2]
[426463010,1782419439000,-1277.0,0.00022121,2]
[426463008,1782419439000,-491.0,0.00022121,2]
[426462966,1782419439000,-197.83913366,0.0002129,2]
[426463017,1782419439000,-212.96280496,0.00022368,2]
[426463018,1782419439000,-500.0,0.00022493,2]
[426463014,1782419439000,-3649.0,0.00022121,2]
[426462988,1782419439000,-219.0,0.00022,2]
[426462964,1782419439000,-1414.15501159,0.00021265,2]
[426462935,1782419439000,-813.0,0.00021,2]
[426462957,1782419439000,-467.0,0.00021,2]
[426463016,1782419439000,-3567.42,0.00022121,2]
[426462913,1782419439000,-151.0,0.00020949,2]
[426462914,1782419439000,-151.0,0.00020949,2]
[426462916,1782419439000,-151.0,0.00020949,2]
[426462915,1782419439000,-151.0,0.00020949,2]
[426462919,1782419439000,-151.0,0.00020949,2]
[426462918,1782419439000,-151.0,0.00020949,2]
[426462917,1782419439000,-151.0,0.00020949,2]
[426462923,1782419439000,-151.0,0.00020949,2]
[426462921,1782419439000,-151.0,0.00020949,2]
[426462920,1782419439000,-151.0,0.00020949,2]
[426462925,1782419439000,-151.0,0.00020949,2]
[426462927,1782419439000,-151.0,0.00020949,2]
[426462931,1782419439000,-151.0,0.00020949,2]
[426462929,1782419439000,-151.0,0.00020949,2]
[426462933,1782419439000,-151.0,0.00020949,2]
[426462947,1782419439000,-219.0,0.00021,2]
[426462945,1782419439000,-515.0,0.00021,2]
[426462937,1782419439000,-1508.64438965,0.00021,2]
[426462939,1782419439000,-915.0,0.00021,2]
[426462941,1782419439000,-378.0,0.00021,2]
[426462943,1782419439000,-226.0,0.00021,2]
[426462951,1782419439000,-1123.0,0.00021,2]
[426462949,1782419439000,-260.0,0.00021,2]
[426462953,1782419439000,-367.0,0.00021,2]
[426462955,1782419439000,-162.0,0.00021,2]
[426462959,1782419439000,-594.0,0.00021,2]
[426462962,1782419439000,-305.0,0.00021,2]
[426463020,1782419439000,-3962.34597599,0.0002268,2]
[426463075,1782419439000,-500.0,0.00023014,2]
[426463021,1782419439000,-3019.33703451,0.00022701,2]
[426463054,1782419439000,-150.0,0.00023014,2]
[426463052,1782419439000,-500.0,0.00023014,2]
[426463055,1782419439000,-500.0,0.00023014,2]
[426463056,1782419439000,-500.0,0.00023014,2]
[426463057,1782419439000,-500.0,0.00023014,2]
[426463058,1782419439000,-500.0,0.00023014,2]
[426463059,1782419439000,-150.0,0.00023014,2]
[426463060,1782419439000,-500.0,0.00023014,2]
[426463061,1782419439000,-500.0,0.00023014,2]
[426463064,1782419439000,-500.0,0.00023014,2]
[426463066,1782419439000,-496.23414018,0.00023014,2]
[426463063,1782419439000,-606.10651734,0.00023014,2]
[426463053,1782419439000,-515.0179115,0.00023014,2]
[426463065,1782419439000,-432.84396056,0.00023014,2]
[426463071,1782419439000,-500.0,0.00023014,2]
[426463069,1782419439000,-500.0,0.00023014,2]
[426463068,1782419439000,-500.0,0.00023014,2]
[426463070,1782419439000,-500.0,0.00023014,2]
[426463077,1782419439000,-500.0,0.00023014,2]
[426463076,1782419439000,-500.0,0.00023014,2]
[426463072,1782419439000,-500.0,0.00023014,2]
[426463078,1782419439000,-566.73223707,0.00023014,2]
[426463074,1782419439000,-500.0,0.00023014,2]
[426463073,1782419439000,-500.0,0.00023014,2]
[426463019,1782419439000,-595.26332651,0.00022647,2]
[426463079,1782419439000,-500.0,0.00023014,2]
[426463067,1782419439000,-500.0,0.00023014,2]
[426463050,1782419439000,-150.0,0.00023014,2]
[426463062,1782419439000,-188.64253889,0.00023014,2]
[426463048,1782419439000,-264.53919535,0.00023014,2]
[426463023,1782419439000,-810.77,0.00022802,2]
[426463051,1782419439000,-173.74778307,0.00023014,2]
[426463024,1782419439000,-813.0,0.00023,2]
[426463033,1782419439000,-162.0,0.00023,2]
[426463027,1782419439000,-226.0,0.00023,2]
[426463025,1782419439000,-915.0,0.00023,2]
[426463032,1782419439000,-367.0,0.00023,2]
[426463030,1782419439000,-260.0,0.00023,2]
[426463034,1782419439000,-467.0,0.00023,2]
[426463026,1782419439000,-378.0,0.00023,2]
[426463035,1782419439000,-594.0,0.00023,2]
[426463028,1782419439000,-515.0,0.00023,2]
[426463031,1782419439000,-1123.0,0.00023,2]
[426463029,1782419439000,-219.0,0.00023,2]
[426463022,1782419439000,-1414.15501159,0.00022729,2]
[426463036,1782419439000,-500.0,0.00023014,2]
[426463037,1782419439000,-500.0,0.00023014,2]
[426463047,1782419439000,-500.0,0.00023014,2]
[426463045,1782419439000,-500.0,0.00023014,2]
[426463046,1782419439000,-500.0,0.00023014,2]
[426463049,1782419439000,-150.0,0.00023014,2]
[426463044,1782419439000,-500.0,0.00023014,2]
[426463043,1782419439000,-500.0,0.00023014,2]
[426463041,1782419439000,-500.0,0.00023014,2]
[426463038,1782419439000,-500.0,0.00023014,2]
[426463040,1782419439000,-500.0,0.00023014,2]
[426463039,1782419439000,-500.0,0.00023014,2]
[426463042,1782419439000,-500.0,0.00023014,2]
[426463117,1782419440000,-500.0,0.00023014,2]
[426463118,1782419440000,-500.0,0.00023014,2]
[426463119,1782419440000,-619.84660301,0.00023014,2]
[426463116,1782419440000,-872.0,0.00023014,2]
[426463111,1782419440000,-872.0,0.00023014,2]
[426463113,1782419440000,-872.0,0.00023014,2]
[426463114,1782419440000,-500.0,0.00023014,2]
[426463110,1782419440000,-500.0,0.00023014,2]
[426463120,1782419440000,-500.0,0.00023014,2]
[426463109,1782419440000,-872.0,0.00023014,2]
[426463115,1782419440000,-500.0,0.00023014,2]
[426463121,1782419440000,-872.0,0.00023014,2]
[426463128,1782419440000,-500.0,0.00023014,2]
[426463123,1782419440000,-500.0,0.00023014,2]
[426463124,1782419440000,-872.0,0.00023014,2]
[426463127,1782419440000,-500.0,0.00023014,2]
[426463125,1782419440000,-500.0,0.00023014,2]
[426463126,1782419440000,-152.19371287,0.00023014,2]
[426463129,1782419440000,-500.0,0.00023014,2]
[426463131,1782419440000,-500.0,0.00023014,2]
[426463130,1782419440000,-500.0,0.00023014,2]
[426463132,1782419440000,-500.0,0.00023014,2]
[426463135,1782419440000,-500.0,0.00023014,2]
[426463134,1782419440000,-500.0,0.00023014,2]
[426463112,1782419440000,-500.0,0.00023014,2]
[426463122,1782419440000,-579.7515813,0.00023014,2]
[426463106,1782419440000,-872.0,0.00023014,2]
[426463136,1782419440000,-446.0,0.00023014,2]
[426463108,1782419440000,-500.0,0.00023014,2]
[426463081,1782419440000,-500.0,0.00023014,2]
[426463082,1782419440000,-500.0,0.00023014,2]
[426463083,1782419440000,-500.0,0.00023014,2]
[426463080,1782419440000,-500.0,0.00023014,2]
[426463085,1782419440000,-500.0,0.00023014,2]
[426463084,1782419440000,-500.0,0.00023014,2]
[426463086,1782419440000,-500.0,0.00023014,2]
[426463088,1782419440000,-872.0,0.00023014,2]
[426463089,1782419440000,-872.0,0.00023014,2]
[426463087,1782419440000,-254.48877466,0.00023014,2]
[426463090,1782419440000,-500.0,0.00023014,2]
[426463095,1782419440000,-872.0,0.00023014,2]
[426463091,1782419440000,-872.0,0.00023014,2]
[426463094,1782419440000,-872.0,0.00023014,2]
[426463093,1782419440000,-500.0,0.00023014,2]
[426463092,1782419440000,-872.0,0.00023014,2]
[426463096,1782419440000,-872.0,0.00023014,2]
[426463102,1782419440000,-500.0,0.00023014,2]
[426463098,1782419440000,-872.0,0.00023014,2]
[426463100,1782419440000,-500.0,0.00023014,2]
[426463104,1782419440000,-500.0,0.00023014,2]
[426463103,1782419440000,-872.0,0.00023014,2]
[426463101,1782419440000,-872.0,0.00023014,2]
[426463097,1782419440000,-872.0,0.00023014,2]
[426463105,1782419440000,-500.0,0.00023014,2]
[426463107,1782419440000,-201.61434256,0.00023014,2]
[426463137,1782419440000,-500.0,0.00023014,2]
[426463187,1782419440000,-500.0,0.00023014,2]
[426463139,1782419440000,-446.0,0.00023014,2]
[426463169,1782419440000,-176.07172224,0.00023014,2]
[426463172,1782419440000,-446.0,0.00023014,2]
[426463170,1782419440000,-958.0,0.00023014,2]
[426463168,1782419440000,-446.0,0.00023014,2]
[426463167,1782419440000,-958.0,0.00023014,2]
[426463173,1782419440000,-958.0,0.00023014,2]
[426463174,1782419440000,-446.0,0.00023014,2]
[426463176,1782419440000,-958.0,0.00023014,2]
[426463175,1782419440000,-958.0,0.00023014,2]
[426463177,1782419440000,-500.0,0.00023014,2]
[426463179,1782419440000,-958.0,0.00023014,2]
[426463178,1782419440000,-958.0,0.00023014,2]
[426463180,1782419440000,-500.0,0.00023014,2]
[426463181,1782419440000,-446.0,0.00023014,2]
[426463183,1782419440000,-958.0,0.00023014,2]
[426463186,1782419440000,-872.0,0.00023014,2]
[426463185,1782419440000,-500.0,0.00023014,2]
[426463184,1782419440000,-958.0,0.00023014,2]
[426463191,1782419440000,-500.0,0.00023014,2]
[426463192,1782419440000,-500.0,0.00023014,2]
[426463193,1782419440000,-500.0,0.00023014,2]
[426463190,1782419440000,-958.0,0.00023014,2]
[426463188,1782419440000,-446.0,0.00023014,2]
[426463189,1782419440000,-500.0,0.00023014,2]
[426463138,1782419440000,-212.0,0.00023014,2]
[426463171,1782419440000,-446.0,0.00023014,2]
[426463166,1782419440000,-500.0,0.00023014,2]
[426463182,1782419440000,-500.0,0.00023014,2]
[426463164,1782419440000,-446.0,0.00023014,2]
[426463165,1782419440000,-958.0,0.00023014,2]
[426463133,1782419440000,-872.0,0.00023014,2]
[426463140,1782419440000,-500.0,0.00023014,2]
[426463141,1782419440000,-446.0,0.00023014,2]
[426463142,1782419440000,-500.0,0.00023014,2]
[426463143,1782419440000,-446.0,0.00023014,2]
[426463147,1782419440000,-958.0,0.00023014,2]
[426463148,1782419440000,-446.0,0.00023014,2]
[426463146,1782419440000,-446.0,0.00023014,2]
[426463144,1782419440000,-500.0,0.00023014,2]
[426463150,1782419440000,-500.0,0.00023014,2]
[426463151,1782419440000,-446.0,0.00023014,2]
[426463153,1782419440000,-500.0,0.00023014,2]
[426463145,1782419440000,-446.0,0.00023014,2]
[426463149,1782419440000,-958.0,0.00023014,2]
[426463163,1782419440000,-500.0,0.00023014,2]
[426463162,1782419440000,-958.0,0.00023014,2]
[426463156,1782419440000,-958.0,0.00023014,2]
[426463161,1782419440000,-446.0,0.00023014,2]
[426463158,1782419440000,-958.0,0.00023014,2]
[426463160,1782419440000,-500.0,0.00023014,2]
[426463155,1782419440000,-446.0,0.00023014,2]
[426463157,1782419440000,-500.0,0.00023014,2]
[426463154,1782419440000,-872.0,0.00023014,2]
[426463152,1782419440000,-958.0,0.00023014,2]
[426463159,1782419440000,-446.0,0.00023014,2]
[426463243,1782419441000,-615.02804069,0.00023014,2]
[426463238,1782419441000,-500.0,0.00023014,2]
[426463242,1782419441000,-500.0,0.00023014,2]
[426463240,1782419441000,-500.0,0.00023014,2]
[426463241,1782419441000,-500.0,0.00023014,2]
[426463239,1782419441000,-500.0,0.00023014,2]
[426463235,1782419441000,-500.0,0.00023014,2]
[426463236,1782419441000,-446.0,0.00023014,2]
[426463232,1782419441000,-500.0,0.00023014,2]
[426463234,1782419441000,-500.0,0.00023014,2]
[426463230,1782419441000,-500.0,0.00023014,2]
[426463248,1782419441000,-500.0,0.00023014,2]
[426463237,1782419441000,-500.0,0.00023014,2]
[426463246,1782419441000,-958.0,0.00023014,2]
[426463261,1782419441000,-500.0,0.00023014,2]
[426463244,1782419441000,-500.0,0.00023014,2]
[426463245,1782419441000,-500.0,0.00023014,2]
[426463249,1782419441000,-500.0,0.00023014,2]
[426463250,1782419441000,-500.0,0.00023014,2]
[426463251,1782419441000,-500.0,0.00023014,2]
[426463252,1782419441000,-500.0,0.00023014,2]
[426463253,1782419441000,-500.0,0.00023014,2]
[426463254,1782419441000,-500.0,0.00023014,2]
[426463259,1782419441000,-500.0,0.00023014,2]
[426463257,1782419441000,-406.98018119,0.00023014,2]
[426463260,1782419441000,-500.0,0.00023014,2]
[426463258,1782419441000,-500.0,0.00023014,2]
[426463233,1782419441000,-500.0,0.00023014,2]
[426463247,1782419441000,-500.0,0.00023014,2]
[426463231,1782419441000,-500.0,0.00023014,2]
[426463198,1782419441000,-500.0,0.00023014,2]
[426463228,1782419441000,-958.0,0.00023014,2]
[426463194,1782419441000,-500.0,0.00023014,2]
[426463195,1782419441000,-958.0,0.00023014,2]
[426463197,1782419441000,-446.0,0.00023014,2]
[426463196,1782419441000,-500.0,0.00023014,2]
[426463256,1782419441000,-500.0,0.00023014,2]
[426463199,1782419441000,-500.0,0.00023014,2]
[426463200,1782419441000,-500.0,0.00023014,2]
[426463203,1782419441000,-872.0,0.00023014,2]
[426463204,1782419441000,-958.0,0.00023014,2]
[426463206,1782419441000,-446.0,0.00023014,2]
[426463202,1782419441000,-500.0,0.00023014,2]
[426463201,1782419441000,-500.0,0.00023014,2]
[426463205,1782419441000,-573.35020874,0.00023014,2]
[426463207,1782419441000,-958.0,0.00023014,2]
[426463229,1782419441000,-500.0,0.00023014,2]
[426463209,1782419441000,-500.0,0.00023014,2]
[426463208,1782419441000,-500.0,0.00023014,2]
[426463211,1782419441000,-500.0,0.00023014,2]
[426463215,1782419441000,-872.0,0.00023014,2]
[426463218,1782419441000,-500.0,0.00023014,2]
[426463216,1782419441000,-500.0,0.00023014,2]
[426463224,1782419441000,-500.0,0.00023014,2]
[426463217,1782419441000,-500.0,0.00023014,2]
[426463221,1782419441000,-500.0,0.00023014,2]
[426463219,1782419441000,-500.0,0.00023014,2]
[426463222,1782419441000,-958.0,0.00023014,2]
[426463223,1782419441000,-500.0,0.00023014,2]
[426463225,1782419441000,-446.0,0.00023014,2]
[426463227,1782419441000,-500.0,0.00023014,2]
[426463226,1782419441000,-876.3631274,0.00023014,2]
[426463213,1782419441000,-446.0,0.00023014,2]
[426463262,1782419441000,-503.11177321,0.00023014,2]
[426463255,1782419441000,-500.0,0.00023014,2]
[426463265,1782419441000,-960.24418351,0.00023014,2]
[426463299,1782419441000,-172.87045873,0.00023644,2]
[426463297,1782419441000,-152.6866486,0.00023637,2]
[426463296,1782419441000,-173.93854472,0.00023637,2]
[426463302,1782419441000,-172.05357506,0.00023644,2]
[426463303,1782419441000,-183.20987283,0.00023654,2]
[426463304,1782419441000,-182.11956946,0.00023654,2]
[426463306,1782419441000,-167.84524148,0.00023654,2]
[426463305,1782419441000,-170.5095806,0.00023654,2]
[426463307,1782419441000,-170.9212725,0.00023654,2]
[426463308,1782419441000,-188.43844123,0.00023654,2]
[426463310,1782419441000,-315.86550273,0.00023654,2]
[426463309,1782419441000,-208.12497018,0.00023654,2]
[426463313,1782419441000,-278.14594857,0.00023654,2]
[426463312,1782419441000,-345.45618339,0.00023654,2]
[426463311,1782419441000,-157.85801191,0.00023654,2]
[426463314,1782419441000,-387.25058662,0.00023654,2]
[426463315,1782419441000,-182.27467723,0.00023654,2]
[426463316,1782419441000,-157.46039437,0.00023654,2]
[426463318,1782419441000,-154.64395472,0.00023654,2]
[426463320,1782419441000,-196.93097326,0.00023654,2]
[426463317,1782419441000,-162.04607962,0.00023654,2]
[426463321,1782419441000,-176.59111376,0.00023654,2]
[426463319,1782419441000,-157.01345415,0.00023654,2]
[426463323,1782419441000,-195.99878163,0.00023654,2]
[426463324,1782419441000,-185.54581066,0.00023654,2]
[426463322,1782419441000,-168.85718495,0.00023654,2]
[426463325,1782419441000,-3019.33703451,0.00023933,2]
[426463266,1782419441000,-500.0,0.00023014,2]
[426463327,1782419441000,-915.0,0.00024,2]
[426463300,1782419441000,-164.48063088,0.00023644,2]
[426463301,1782419441000,-178.26332024,0.00023644,2]
[426463326,1782419441000,-813.0,0.00024,2]
[426463294,1782419441000,-172.26606568,0.00023637,2]
[426463298,1782419441000,-171.74984089,0.00023644,2]
[426463263,1782419441000,-455.56125815,0.00023014,2]
[426463268,1782419441000,-500.0,0.00023014,2]
[426463267,1782419441000,-500.0,0.00023014,2]
[426463271,1782419441000,-500.0,0.00023014,2]
[426463269,1782419441000,-500.0,0.00023014,2]
[426463270,1782419441000,-500.0,0.00023014,2]
[426463272,1782419441000,-500.0,0.00023014,2]
[426463274,1782419441000,-500.0,0.00023014,2]
[426463275,1782419441000,-500.0,0.00023014,2]
[426463273,1782419441000,-500.0,0.00023014,2]
[426463276,1782419441000,-506.92104391,0.00023014,2]
[426463279,1782419441000,-500.0,0.00023014,2]
[426463278,1782419441000,-500.0,0.00023014,2]
[426463277,1782419441000,-500.0,0.00023014,2]
[426463264,1782419441000,-587.58954103,0.00023014,2]
[426463282,1782419441000,-264.12655463,0.00023222,2]
[426463280,1782419441000,-150.0,0.00023014,2]
[426463289,1782419441000,-150.0,0.00023288,2]
[426463292,1782419441000,-197.91314794,0.00023637,2]
[426463293,1782419441000,-217.1219251,0.00023637,2]
[426463291,1782419441000,-163.53478294,0.00023637,2]
[426463290,1782419441000,-3962.34597599,0.00023607,2]
[426463295,1782419441000,-150.00345718,0.00023637,2]
[426463285,1782419441000,-150.0,0.00023288,2]
[426463288,1782419441000,-150.0,0.00023288,2]
[426463286,1782419441000,-150.0,0.00023288,2]
[426463283,1782419441000,-180.88507098,0.00023222,2]
[426463284,1782419441000,-150.0,0.00023288,2]
[426463287,1782419441000,-150.0,0.00023288,2]
[426463281,1782419441000,-501.65353648,0.00023014,2]
[426463370,1782419442000,-335.69048296,0.00024911,2]
[426463368,1782419442000,-364.23913893,0.00024911,2]
[426463369,1782419442000,-341.0191612,0.00024911,2]
[426463367,1782419442000,-366.41974567,0.00024911,2]
[426463366,1782419442000,-344.10715012,0.00024901,2]
[426463365,1782419442000,-356.52664049,0.00024901,2]
[426463362,1782419442000,-343.49968177,0.00024901,2]
[426463361,1782419442000,-305.3732972,0.00024894,2]
[426463363,1782419442000,-345.74091746,0.00024901,2]
[426463359,1782419442000,-300.00691436,0.00024894,2]
[426463371,1782419442000,-341.842545,0.00024911,2]
[426463364,1782419442000,-328.96126176,0.00024901,2]
[426463360,1782419442000,-347.87708943,0.00024894,2]
[426463375,1782419442000,-631.73100546,0.00024912,2]
[426463376,1782419442000,-315.71602381,0.00024912,2]
[426463377,1782419442000,-690.91236678,0.00024912,2]
[426463378,1782419442000,-556.29189714,0.00024912,2]
[426463373,1782419442000,-416.24994036,0.00024912,2]
[426463374,1782419442000,-240.48004253,0.00024912,2]
[426463379,1782419442000,-774.50117324,0.00024912,2]
[426463381,1782419442000,-314.92078874,0.00024912,2]
[426463380,1782419442000,-364.54935446,0.00024912,2]
[426463382,1782419442000,-324.09215923,0.00024912,2]
[426463383,1782419442000,-309.28790943,0.00024912,2]
[426463384,1782419442000,-314.0269083,0.00024912,2]
[426463385,1782419442000,-393.86194651,0.00024912,2]
[426463357,1782419442000,-434.2438502,0.00024894,2]
[426463372,1782419442000,-376.87688246,0.00024912,2]
[426463356,1782419442000,-395.82629589,0.00024894,2]
[426463341,1782419442000,-220.205878,0.00024414,14]
[426463354,1782419442000,-243.87991588,0.00024894,2]
[426463392,1782419442000,-380.0,0.00025,2]
[426463328,1782419442000,-378.0,0.00024,2]
[426463330,1782419442000,-515.0,0.00024,2]
[426463329,1782419442000,-226.0,0.00024,2]
[426463331,1782419442000,-219.0,0.00024,2]
[426463333,1782419442000,-1123.0,0.00024,2]
[426463332,1782419442000,-260.0,0.00024,2]
[426463335,1782419442000,-162.0,0.00024,2]
[426463334,1782419442000,-367.0,0.00024,2]
[426463336,1782419442000,-467.0,0.00024,2]
[426463340,1782419442000,-265.713336,0.00024396,14]
[426463339,1782419442000,-1414.15501159,0.00024194,2]
[426463338,1782419442000,-268.63153517,0.00024083,2]
[426463337,1782419442000,-594.0,0.00024,2]
[426463343,1782419442000,-3962.34597599,0.00024533,2]
[426463342,1782419442000,-168.234652,0.000245,14]
[426463345,1782419442000,-160.02799572,0.00024657,2]
[426463344,1782419442000,-468.35,0.00024543,7]
[426463346,1782419442000,-183.52,0.00024658,2]
[426463347,1782419442000,-1000.0,0.00024658,2]
[426463348,1782419442000,-755.47,0.00024658,2]
[426463349,1782419442000,-1058.13,0.00024658,2]
[426463351,1782419442000,-368.47059384,0.00024739,2]
[426463353,1782419442000,-327.06956589,0.00024894,2]
[426463350,1782419442000,-219.79085833,0.00024739,2]
[426463352,1782419442000,-252.34429614,0.00024739,2]
[426463358,1782419442000,-344.53213137,0.00024894,2]
[426463355,1782419442000,-229.36482636,0.00024894,2]
[426463388,1782419442000,-391.99756327,0.00024912,2]
[426463386,1782419442000,-353.18222753,0.00024912,2]
[426463387,1782419442000,-337.71436989,0.00024912,2]
[426463421,1782419442000,-185.24,0.00025725,2]
[426463425,1782419442000,-593.73944383,0.00025732,2]
[426463423,1782419442000,-487.75983176,0.00025732,2]
[426463424,1782419442000,-458.72965273,0.00025732,2]
[426463427,1782419442000,-516.79819705,0.00025732,2]
[426463426,1782419442000,-651.3657753,0.00025732,2]
[426463429,1782419442000,-450.01037154,0.00025732,2]
[426463428,1782419442000,-204.31903166,0.00025732,2]
[426463430,1782419442000,-162.8137474,0.00025732,2]
[426463434,1782419442000,-518.61137619,0.0002574,2]
[426463432,1782419442000,-458.05994581,0.00025732,2]
[426463433,1782419442000,-515.24952266,0.0002574,2]
[426463435,1782419442000,-233.68651285,0.0002574,2]
[426463420,1782419442000,-151.0,0.00025725,2]
[426463439,1782419442000,-224.92096243,0.0002574,2]
[426463436,1782419442000,-205.90000372,0.0002574,2]
[426463438,1782419442000,-237.39399729,0.0002574,2]
[426463440,1782419442000,-243.97885196,0.0002574,2]
[426463441,1782419442000,-493.44189264,0.0002574,2]
[426463443,1782419442000,-534.78996073,0.0002574,2]
[426463442,1782419442000,-220.82223993,0.0002574,2]
[426463446,1782419442000,-546.35870839,0.0002575,2]
[426463444,1782419442000,-516.16072519,0.0002574,2]
[426463445,1782419442000,-549.6296185,0.0002575,2]
[426463447,1782419442000,-511.5287418,0.0002575,2]
[426463449,1782419442000,-512.7638175,0.0002575,2]
[426463448,1782419442000,-503.53572444,0.0002575,2]
[426463450,1782419442000,-565.31532369,0.0002575,2]
[426463437,1782419442000,-242.39797539,0.0002574,2]
[426463422,1782419442000,-490.60434883,0.00025732,2]
[426463431,1782419442000,-521.81563415,0.00025732,2]
[426463418,1782419442000,-231.17959067,0.00025645,2]
[426463419,1782419442000,-1414.15501159,0.00025658,2]
[426463391,1782419442000,-924.0,0.00025,2]
[426463390,1782419442000,-831.0,0.00025,2]
[426463393,1782419442000,-245.0,0.00025,2]
[426463395,1782419442000,-236.0,0.00025,2]
[426463397,1782419442000,-1131.0,0.00025,2]
[426463396,1782419442000,-265.0,0.00025,2]
[426463394,1782419442000,-521.0,0.00025,2]
[426463398,1782419442000,-375.0,0.00025,2]
[426463400,1782419442000,-484.0,0.00025,2]
[426463403,1782419442000,-383.0,0.00025121,2]
[426463401,1782419442000,-598.0,0.00025,2]
[426463402,1782419442000,-1402.0,0.00025044,5]
[426463399,1782419442000,-171.0,0.00025,2]
[426463389,1782419442000,-371.09162132,0.00024912,2]
[426463404,1782419442000,-1277.0,0.00025121,2]
[426463408,1782419442000,-200.0,0.00025147,2]
[426463411,1782419442000,-1000.0,0.000253,2]
[426463417,1782419442000,-337.56610457,0.00025645,2]
[426463413,1782419442000,-3962.34597599,0.0002546,2]
[426463415,1782419442000,-153.90461545,0.00025526,3]
[426463414,1782419442000,-153.0,0.00025526,3]
[426463416,1782419442000,-201.35648572,0.00025645,2]
[426463412,1782419442000,-1058.13,0.00025321,7]
[426463405,1782419442000,-1230.0,0.00025121,2]
[426463406,1782419442000,-3649.0,0.00025121,2]
[426463407,1782419442000,-3562.0,0.00025121,2]
[426463409,1782419442000,-3019.33703451,0.00025166,2]
[426463410,1782419442000,-316.0,0.000253,2]
[426463495,1782419443000,-268.63153517,0.00026225,2]
[426463493,1782419443000,-150.0,0.0002608,5]